[Event "1st 4NCL International Open"]
[Site "Telford"]
[Date "2018.11.03"]
[Round "6"]
[White "Ahluwalia, Amardip"]
[Black "Jukes, Sam"]
[Result "1-0"]
[ECO "A10"]
[WhiteElo "2085"]
[BlackElo "1863"]
[Annotator "NA"]
[PlyCount "68"]
[EventDate "2018.10.31"]
[EventType "swiss"]
[EventCountry "GBR"]
[SourceTitle "playchess.com"]
[Source "ChessBase"]
[SourceQuality "1"]
[TimeControl "5400+30"]

1. c4 {[%emt 0:00:00]} b6 {[%emt 0:00:00]} 2. e4 {[%emt 0:00:41]} Bb7 {[%emt 0:00:01]} 3. Nc3 {[%emt 0:00:44]} e6 {[%emt 0:00:21]} 4. Nge2 {[%emt 0:01:27]} Nf6 {[%emt 0:02:57]} 5. d3 {[%emt 0:01:08]} d6 {[%emt 0:01:49]} 6. g3 {[%emt 0:02:43]} Be7 {[%emt 0:00:57]} 7. Bg2 {[%emt 0:00:13]} O-O {[%emt 0:01:46]} 8. O-O {[%emt 0:01:34]} e5 {[%emt 0:01:51]} 9. f4 {[%emt 0:03:19]} c5 {[%emt 0:12:57]} 10. Kh1 {[%emt 0:03:34]} exf4 {[%emt 0:08:25]} 11. gxf4 {[%emt 0:01:26]} Nbd7 {[%emt 0:02:38]} 12. Ng3 {[%emt 0:03:35]} g6 {[%emt 0:04:48]} 13. Rb1 {[%emt 0:07:34]} Bc6 {[%emt 0:05:17]} 14. b3 {[%emt 0:05:13]} h5 {[%emt 0:08:17]} 15. Nd5 {[%emt 0:03:48]} h4 {[%emt 0:05:51]} 16. Ne2 {[%emt 0:01:07]} Rc8 {[%emt 0:06:12]} 17. Nec3 {[%emt 0:05:30]} Bxd5 {[%emt 0:04:52]} 18. cxd5 {[%emt 0:02:47]} a6 {[%emt 0:04:24]} 19. Bb2 {[%emt 0:04:02]} b5 {[%emt 0:01:16]} 20. Qe2 {[%emt 0:02:32]} Qc7 {[%emt 0:04:28]} 21. e5 {[%emt 0:05:46]} dxe5 {[%emt 0:01:48]} 22. fxe5 {[%emt 0:00:39]} Nxe5 {[%emt 0:01:38]} 23. Nxb5 {[%emt 0:00:06]} axb5 {[%emt 0:01:18]} 24. Bxe5 {[%emt 0:00:07]} Bd6 {[%emt 0:02:33]} 25. Bxf6 {[%emt 0:00:30]} Bxh2 {[%emt 0:00:09]} 26. Bxh4 {[%emt 0:00:40]} Rce8 {[%emt 0:00:16]} 27. Qf3 {[%emt 0:01:35]} Re5 {[%emt 0:00:38]} 28. Kxh2 {[%emt 0:01:16]} Rh5+ {[%emt 0:01:00]} 29. Kh3 {[%emt 0:00:33]} f5 {[%emt 0:03:46]} 30. Qg3 {[%emt 0:02:07]} Qh7 {[%emt 0:01:01]} 31. Bf3 {[%emt 0:00:55]} Rh6 {[%emt 0:00:17]} 32. Qg5 {[%emt 0:00:40]} f4 {[%emt 0:00:50]} 33. Rg1 {[%emt 0:00:04]} Kg7 {[%emt 0:00:31]} 34. Rbe1 {[%emt 0:01:04]} Rf5 {[%emt 0:00:24]} 1-0

[Event "1st 4NCL International Open"]
[Site "Telford"]
[Date "2018.11.03"]
[Round "6"]
[White "Paul, Nathanael"]
[Black "Zabrocki, Philip"]
[Result "1/2-1/2"]
[ECO "C01"]
[WhiteElo "1890"]
[BlackElo "1952"]
[Annotator "NA"]
[PlyCount "62"]
[EventDate "2018.10.31"]
[EventType "swiss"]
[EventCountry "GBR"]
[SourceTitle "playchess.com"]
[Source "ChessBase"]
[SourceQuality "1"]
[TimeControl "5400+30"]

1. e4 {[%emt 0:00:38]} e6 {[%emt 0:00:00]} 2. d4 {[%emt 0:00:16]} d5 {[%emt 0:00:00]} 3. Nc3 {[%emt 0:00:04]} Bb4 {[%emt 0:00:04]} 4. exd5 {[%emt 0:02:25]} exd5 {[%emt 0:00:22]} 5. Bd3 {[%emt 0:00:05]} Nc6 {[%emt 0:00:48]} 6. a3 {[%emt 0:00:04]} Bxc3+ {[%emt 0:00:12]} 7. bxc3 {[%emt 0:00:06]} Nge7 {[%emt 0:01:23]} 8. Qh5 {[%emt 0:08:58]} Be6 {[%emt 0:02:28]} 9. Rb1 {[%emt 0:00:41]} b6 {[%emt 0:10:05]} 10. Ne2 {[%emt 0:01:20]} Qd7 {[%emt 0:00:36]} 11. h3 {[%emt 0:00:20]} Bf5 {[%emt 0:01:46]} 12. g4 {[%emt 0:04:48]} Bxd3 {[%emt 0:04:38]} 13. cxd3 {[%emt 0:01:29]} Qe6 {[%emt 0:03:09]} 14. Bf4 {[%emt 0:02:41]} O-O-O {[%emt 0:02:07]} 15. Kd2 {[%emt 0:03:10]} h6 {[%emt 0:07:19]} 16. Be3 {[%emt 0:00:07]} g5 {[%emt 0:05:04]} 17. h4 {[%emt 0:01:07]} f6 {[%emt 0:08:33]} 18. hxg5 {[%emt 0:06:22]} hxg5 {[%emt 0:04:40]} 19. Qxh8 {[%emt 0:00:15]} Rxh8 {[%emt 0:00:10]} 20. Rxh8+ {[%emt 0:00:05]} Kb7 {[%emt 0:00:51]} 21. Rh6 {[%emt 0:07:10]} Ng8 {[%emt 0:01:44]} 22. Rh8 {[%emt 0:00:40]} Nge7 {[%emt 0:00:42]} 23. Rh6 {[%emt 0:07:19]} Ng8 {[%emt 0:00:21]} 24. Rhh1 {[%emt 0:00:06]} Na5 {[%emt 0:03:00]} 25. f4 {[%emt 0:03:56]} Qe7 {[%emt 0:03:39]} 26. fxg5 {[%emt 0:01:01]} Qxa3 {[%emt 0:01:09]} 27. Ke1 {[%emt 0:01:24]} Qe7 {[%emt 0:00:59]} 28. Kf2 {[%emt 0:00:26]} fxg5 {[%emt 0:00:17]} 29. Rh5 {[%emt 0:01:03]} Qf7+ {[%emt 0:03:27]} 30. Kg2 {[%emt 0:00:29]} Qe6 {[%emt 0:00:14]} 31. Kf3 {[%emt 0:03:24]} Qf7+ {[%emt 0:01:12]} 1/2-1/2

[Event "1st 4NCL International Open"]
[Site "Telford"]
[Date "2018.11.03"]
[Round "6"]
[White "Guha, Chirag"]
[Black "Clark, Robert G"]
[Result "0-1"]
[ECO "A70"]
[WhiteElo "1887"]
[BlackElo "2025"]
[Annotator "NA"]
[PlyCount "138"]
[EventDate "2018.10.31"]
[EventType "swiss"]
[EventCountry "GBR"]
[SourceTitle "playchess.com"]
[Source "ChessBase"]
[SourceQuality "1"]
[TimeControl "5400+30"]

1. d4 {[%emt 0:00:00]} Nf6 {[%emt 0:00:00]} 2. c4 {[%emt 0:00:40]} c5 {[%emt 0:00:33]} 3. d5 {[%emt 0:00:00]} e6 {[%emt 0:00:09]} 4. Nc3 {[%emt 0:00:00]} exd5 5. cxd5 d6 {[%emt 0:00:16]} 6. e4 {[%emt 0:00:00]} g6 {[%emt 0:00:19]} 7. Nf3 {[%emt 0:00:00]} Bg4 {[%emt 0:00:31]} 8. h3 {[%emt 0:04:39]} Bxf3 {[%emt 0:00:27]} 9. Qxf3 {[%emt 0:00:03]} Bg7 {[%emt 0:00:35]} 10. Bd3 {[%emt 0:00:34]} a6 {[%emt 0:00:40]} 11. a4 {[%emt 0:01:07]} O-O {[%emt 0:00:15]} 12. O-O {[%emt 0:00:31]} Nbd7 {[%emt 0:00:23]} 13. Bf4 {[%emt 0:02:52]} Qe7 {[%emt 0:16:22]} 14. Qe2 {[%emt 0:18:23]} Rfe8 {[%emt 0:05:39]} 15. Rae1 {[%emt 0:03:52]} Rab8 {[%emt 0:03:48]} 16. Nd1 {[%emt 0:09:34]} Ne5 {[%emt 0:02:42]} 17. Bxe5 {[%emt 0:05:57]} Qxe5 {[%emt 0:01:33]} 18. Ne3 {[%emt 0:02:18]} Qd4 {[%emt 0:04:18]} 19. Nc4 {[%emt 0:01:10]} Nxd5 {[%emt 0:04:16]} 20. Bb1 {[%emt 0:18:58]} Nf4 {[%emt 0:07:21]} 21. Qc2 {[%emt 0:08:18]} b5 {[%emt 0:03:14]} 22. axb5 {[%emt 0:02:14]} axb5 {[%emt 0:01:20]} 23. Ne3 {[%emt 0:00:10]} Qxb2 {[%emt 0:02:23]} 24. Qd1 {[%emt 0:00:12]} Be5 {[%emt 0:03:13]} 25. g3 {[%emt 0:04:56]} Nxh3+ {[%emt 0:08:39]} 26. Kg2 {[%emt 0:00:21]} Ng5 {[%emt 0:00:14]} 27. Re2 {[%emt 0:00:42]} Qb4 {[%emt 0:06:21]} 28. f4 {[%emt 0:01:35]} Nxe4 {[%emt 0:09:01]} 29. Nd5 {[%emt 0:01:42]} Nc3 {[%emt 0:03:25]} 30. Nxb4 {[%emt 0:03:02]} Nxd1 {[%emt 0:00:04]} 31. Rxd1 {[%emt 0:01:10]} Bc3 {[%emt 0:03:12]} 32. Rxe8+ {[%emt 0:00:10]} Rxe8 {[%emt 0:00:05]} 33. Nd5 {[%emt 0:00:49]} Bd4 {[%emt 0:01:05]} 34. Rxd4 {[%emt 0:04:33]} Re1 {[%emt 0:05:58]} 35. Rd2 {[%emt 0:02:18]} Rxb1 {[%emt 0:00:21]} 36. Nf6+ {[%emt 0:00:03]} Kg7 {[%emt 0:02:08]} 37. Ne8+ {[%emt 0:00:14]} Kf8 {[%emt 0:00:13]} 38. Nxd6 {[%emt 0:00:39]} c4 {[%emt 0:00:51]} 39. Rc2 {[%emt 0:02:09]} Ke7 {[%emt 0:00:49]} 40. Ne4 {[%emt 0:02:53]} h6 {[%emt 0:02:03]} 41. Kf3 {[%emt 0:00:21]} Rb3+ {[%emt 0:00:20]} 42. Kf2 {[%emt 0:00:38]} f5 {[%emt 0:01:17]} 43. Nd2 {[%emt 0:00:42]} Rb4 {[%emt 0:03:01]} 44. Ke3 {[%emt 0:00:12]} g5 {[%emt 0:00:27]} 45. Kf3 {[%emt 0:01:07]} Kd6 {[%emt 0:00:42]} 46. Ke3 {[%emt 0:00:35]} Ra4 {[%emt 0:00:45]} 47. Rc3 {[%emt 0:00:19]} Kd5 {[%emt 0:01:09]} 48. fxg5 {[%emt 0:00:39]} hxg5 {[%emt 0:00:04]} 49. Nf3 {[%emt 0:00:32]} b4 {[%emt 0:00:27]} 50. Rc1 {[%emt 0:00:20]} Ra3+ {[%emt 0:00:01]} 51. Ke2 {[%emt 0:00:23]} g4 {[%emt 0:00:20]} 52. Nd2 {[%emt 0:00:17]} c3 {[%emt 0:00:46]} 53. Nb1 {[%emt 0:00:58]} Ra2+ {[%emt 0:00:10]} 54. Ke3 {[%emt 0:00:29]} Rg2 {[%emt 0:00:25]} 55. Kf4 {[%emt 0:00:27]} Rf2+ {[%emt 0:00:05]} 56. Ke3 {[%emt 0:00:25]} Rf3+ {[%emt 0:00:15]} 57. Ke2 {[%emt 0:00:09]} Rxg3 {[%emt 0:00:37]} 58. Rd1+ {[%emt 0:00:21]} Kc4 {[%emt 0:00:28]} 59. Rf1 {[%emt 0:00:23]} Rg2+ {[%emt 0:01:30]} 60. Ke3 {[%emt 0:00:10]} Rb2 {[%emt 0:00:01]} 61. Rg1 {[%emt 0:00:52]} Kb3 {[%emt 0:01:10]} 62. Kd3 {[%emt 0:00:21]} Rh2 {[%emt 0:00:18]} 63. Rf1 {[%emt 0:00:40]} Rh3+ {[%emt 0:00:22]} 64. Kd4 {[%emt 0:00:26]} Rf3 {[%emt 0:00:49]} 65. Re1 {[%emt 0:00:35]} g3 {[%emt 0:00:25]} 66. Rg1 {[%emt 0:00:44]} f4 {[%emt 0:00:21]} 67. Ke4 {[%emt 0:00:11]} Rf2 {[%emt 0:00:20]} 68. Kd3 {[%emt 0:00:14]} g2 {[%emt 0:00:25]} 69. Nxc3 {[%emt 0:00:18]} bxc3 {[%emt 0:00:56]} 0-1

[Event "1st 4NCL International Open"]
[Site "Telford"]
[Date "2018.11.03"]
[Round "6"]
[White "Akeya-Price, Robert"]
[Black "Gibson, Christopher A"]
[Result "1/2-1/2"]
[ECO "E81"]
[WhiteElo "1730"]
[BlackElo "1924"]
[Annotator "NA"]
[PlyCount "59"]
[EventDate "2018.10.31"]
[EventType "swiss"]
[EventCountry "GBR"]
[SourceTitle "playchess.com"]
[Source "ChessBase"]
[SourceQuality "1"]
[TimeControl "5400+30"]

1. d4 {[%emt 0:00:00]} Nf6 {[%emt 0:00:00]} 2. c4 {[%emt 0:00:00]} g6 {[%emt 0:00:00]} 3. Nc3 {[%emt 0:00:00]} Bg7 {[%emt 0:00:00]} 4. e4 {[%emt 0:00:00]} d6 {[%emt 0:00:00]} 5. f3 {[%emt 0:00:06]} O-O {[%emt 0:00:00]} 6. Be3 {[%emt 0:00:10]} c5 {[%emt 0:01:01]} 7. dxc5 {[%emt 0:06:21]} dxc5 {[%emt 0:00:18]} 8. Qxd8 {[%emt 0:00:06]} Rxd8 {[%emt 0:00:05]} 9. Bxc5 {[%emt 0:00:06]} Nc6 {[%emt 0:00:11]} 10. Nd5 {[%emt 0:00:12]} Nd7 {[%emt 0:01:58]} 11. Bxe7 {[%emt 0:00:15]} Nxe7 {[%emt 0:01:29]} 12. Nxe7+ {[%emt 0:00:06]} Kf8 {[%emt 0:00:22]} 13. Nd5 {[%emt 0:00:27]} Ne5 {[%emt 0:26:27]} 14. Rd1 {[%emt 0:25:23]} Be6 {[%emt 0:02:06]} 15. b3 {[%emt 0:04:42]} Nc6 {[%emt 0:05:45]} 16. Ne2 {[%emt 0:02:35]} Bxd5 {[%emt 0:09:47]} 17. cxd5 {[%emt 0:10:45]} Nb4 {[%emt 0:01:14]} 18. g3 {[%emt 0:15:53]} Nxa2 {[%emt 0:09:20]} 19. Bh3 {[%emt 0:01:08]} a5 {[%emt 0:04:39]} 20. O-O {[%emt 0:05:34]} b5 {[%emt 0:05:18]} 21. f4 {[%emt 0:11:39]} Nc3 {[%emt 0:05:00]} 22. Nxc3 {[%emt 0:00:20]} Bxc3 {[%emt 0:00:04]} 23. Rd3 {[%emt 0:00:38]} b4 {[%emt 0:02:15]} 24. e5 {[%emt 0:02:55]} a4 {[%emt 0:05:00]} 25. bxa4 {[%emt 0:00:14]} Rxa4 {[%emt 0:00:12]} 26. d6 {[%emt 0:01:14]} Ra1 {[%emt 0:05:49]} 27. Rxa1 {[%emt 0:01:08]} Bxa1 {[%emt 0:00:02]} 28. Rb3 {[%emt 0:02:57]} Bc3 {[%emt 0:01:41]} 29. Kf2 {[%emt 0:06:41]} f5 {[%emt 0:05:53]} 30. d7 {[%emt 0:02:10]} 1/2-1/2

[Event "1st 4NCL International Open"]
[Site "Telford"]
[Date "2018.11.03"]
[Round "7"]
[White "Richardson, John R"]
[Black "Mihalik, Agoston"]
[Result "1-0"]
[ECO "E43"]
[WhiteElo "2213"]
[BlackElo "2223"]
[Annotator "NA"]
[PlyCount "85"]
[EventDate "2018.10.31"]
[EventType "swiss"]
[EventCountry "GBR"]
[SourceTitle "playchess.com"]
[Source "ChessBase"]
[SourceQuality "1"]
[TimeControl "5400+30"]

1. d4 {[%emt 0:00:00]} Nf6 {[%emt 0:00:00]} 2. c4 {[%emt 0:00:00]} e6 {[%emt 0:00:00]} 3. Nc3 {[%emt 0:00:00]} Bb4 {[%emt 0:00:00]} 4. e3 {[%emt 0:00:00]} b6 {[%emt 0:02:52]} 5. Bd3 {[%emt 0:00:00]} Bb7 {[%emt 0:03:22]} 6. Nge2 {[%emt 0:00:05]} Bxg2 {[%emt 0:02:51]} 7. Rg1 {[%emt 0:00:02]} Be4 {[%emt 0:00:17]} (7... Bf3 $15) 8. a3 {[%emt 0:07:31]} Bxc3+ {[%emt 0:02:51]} 9. Nxc3 {[%emt 0:00:10]} Bg6 {[%emt 0:02:04]} 10. e4 {[%emt 0:01:17] E43: Nimzo-Indian: Rubinstein: 4...b6} d6 {[%emt 0:10:20]} (10... d5 11. Bg5 dxc4 12. Bxc4 Qd7 13. Bxf6 gxf6 14. h4 h5 15. d5 exd5 16. Nxd5 Qd6 17. Qa4+ Kf8 {½-½ (29) Rakhmanov,A (2591)-Efimenko,Z (2657) Moscow 2010}) 11. Bg5 {[%emt 0:03:08]} e5 {[%emt 0:06:40]} 12. f4 {[%emt 0:04:34]} exf4 {[%emt 0:12:18] LiveBook: 3 Games} 13. Qd2 $146 {[%emt 0:24:48]} ({Predecessor:} 13. Nd5 c6 14. Nxf4 Nbd7 15. Qf3 Qc7 16. O-O-O O-O-O 17. h4 Rhe8 {1-0 (28) Baburin,A (2545)-Likavsky,T (2485) Arvier 2007}) 13... h6 {[%emt 0:07:38]} 14. Bh4 {[%emt 0:03:55]} Nxe4 {[%emt 0:02:39]} (14... c5 $16) 15. Bxd8 {[%emt 0:04:51]} Nxd2 {[%emt 0:00:07]} 16. Kxd2 {[%emt 0:02:51]} Bxd3 {[%emt 0:19:17]} (16... Kxd8 $11 17. Bxg6 fxg6 18. Rxg6 Nc6) 17. Kxd3 {[%emt 0:00:45]} Kxd8 {[%emt 0:00:13]} 18. Rxg7 {[%emt 0:00:05]} Rf8 {[%emt 0:05:06]} 19. Rf1 {[%emt 0:00:24]} c6 {[%emt 0:00:37]} 20. Rxf4 {[%emt 0:00:20]} Ke7 {[%emt 0:00:08]} 21. Rh7 {[%emt 0:00:38]} Na6 {[%emt 0:01:31]} 22. Ne4 {[%emt 0:04:58]} Nc7 {[%emt 0:01:38]} 23. Ng3 {[%emt 0:03:57]} Ne6 {[%emt 0:02:16]} 24. Nf5+ {[%emt 0:00:29]} Kd7 {[%emt 0:06:22]} 25. Rh4 {[%emt 0:00:45]} d5 {[%emt 0:03:08]} 26. cxd5 {[%emt 0:04:55]} cxd5 {[%emt 0:00:07]} 27. R4xh6 {[%emt 0:00:14]} Ng5 {[%emt 0:00:50]} ({Black should try} 27... Rae8 $1 $14) 28. Rd6+ {[%emt 0:05:30]} Kc7 {[%emt 0:00:03]} 29. Rg7 {[%emt 0:00:32]} Rg8 {[%emt 0:00:08]} 30. Rxd5 {[%emt 0:01:31]} Rxg7 {[%emt 0:00:25]} 31. Nxg7 {[%emt 0:00:02]} Ne6 {[%emt 0:00:22]} 32. Rf5 {[%emt 0:00:27]} Nxg7 {[%emt 0:00:41]} 33. Rxf7+ {[%emt 0:00:04]} Kc6 {[%emt 0:02:38]} 34. Rxg7 {[%emt 0:00:05]} Rh8 {[%emt 0:00:02]} 35. Rxa7 {[%emt 0:00:44]} Rxh2 {[%emt 0:00:12]} 36. Kc3 {[%emt 0:01:41]} Rh3+ {[%emt 0:00:23]} 37. Kc4 {[%emt 0:01:17]} b5+ {[%emt 0:01:34]} 38. Kb4 {[%emt 0:00:04]} Rd3 {[%emt 0:00:23]} 39. Ra6+ $18 {[%emt 0:00:41]} Kb7 {[%emt 0:04:13]} 40. Rd6 {[%emt 0:02:11]} Kc7 {[%emt 0:00:16]} 41. Rd5 {[%emt 0:00:44]} Kc6 {[%emt 0:00:06]} 42. Rc5+ {[%emt 0:00:12]} Kd6 {[%emt 0:00:02]} 43. Rxb5 {[%emt 0:02:20]} 1-0

[Event "1st 4NCL International Open"]
[Site "Telford"]
[Date "2018.11.03"]
[Round "7"]
[White "Britton, Richard L"]
[Black "Ahluwalia, Amardip"]
[Result "1/2-1/2"]
[ECO "C78"]
[WhiteElo "2204"]
[BlackElo "2085"]
[Annotator "NA"]
[PlyCount "77"]
[EventDate "2018.10.31"]
[EventType "swiss"]
[EventCountry "GBR"]
[SourceTitle "playchess.com"]
[Source "ChessBase"]
[SourceQuality "1"]
[TimeControl "5400+30"]

1. e4 {[%emt 0:00:00]} e5 {[%emt 0:00:28]} 2. Nf3 {[%emt 0:00:00]} Nc6 {[%emt 0:00:04]} 3. Bb5 {[%emt 0:00:00]} a6 {[%emt 0:00:33]} 4. Ba4 {[%emt 0:00:00]} Nf6 {[%emt 0:00:30]} 5. O-O {[%emt 0:00:00]} b5 {[%emt 0:00:36]} 6. Bb3 {[%emt 0:00:00]} Bc5 {[%emt 0:00:53]} 7. c3 {[%emt 0:01:15]} d6 {[%emt 0:00:39] LiveBook: 1287 Partien} 8. d3 {[%emt 0:01:33] C78: Ruy Lopez: Archangelsk and Möller Defences} (8. a4 b4 9. d4 Ba7 10. Bg5 Rb8 11. Bd5 Ne7 12. dxe5 Nfxd5 13. exd5 O-O 14. exd6 Qxd6 15. c4 Nf5 16. Nbd2 {1-0 (41) Nepomniachtchi,I (2757)-Kramnik,V (2792) Dortmund 2018}) 8... Bb6 {[%emt 0:01:29]} 9. a4 {[%emt 0:00:14]} Rb8 {[%emt 0:00:05]} 10. Na3 {[%emt 0:00:22]} O-O {[%emt 0:01:48]} (10... b4 $11 11. Nc4 Ba7) 11. Bg5 $146 {[%emt 0:00:40]} ({White should play Predecessor:} 11. axb5 $16 axb5 12. Nxb5 d5 13. exd5 Nxd5 14. h3 h6 15. Na3 Be6 16. Ba4 Nde7 17. Qe2 Qd6 18. Nc4 Bxc4 19. dxc4 f5 20. b4 e4 21. c5 Qd5 22. Nd2 {1-0 (22) Oleksienko,M (2608)-Lagerman,R (2305) Reykjavik 2013}) 11... h6 {[%emt 0:01:05]} 12. Bh4 {[%emt 0:01:30]} g5 {[%emt 0:07:50]} 13. Bg3 {[%emt 0:00:06]} Bg4 {[%emt 0:02:15]} 14. axb5 {[%emt 0:00:28]} axb5 {[%emt 0:00:10]} 15. Kh1 {[%emt 0:21:01]} (15. h3 $16 Bd7 16. Nxb5) 15... Ne7 {[%emt 0:10:49]} 16. Nc2 {[%emt 0:01:37]} Ng6 {[%emt 0:01:54]} 17. Ne3 {[%emt 0:09:24]} Qd7 {[%emt 0:06:28]} 18. Nxg4 {[%emt 0:02:16]} Qxg4 {[%emt 0:01:43]} 19. h3 {[%emt 0:11:10]} Qd7 {[%emt 0:03:18]} 20. Ng1 {[%emt 0:03:06]} Kg7 {[%emt 0:08:25]} 21. Ne2 {[%emt 0:04:21]} Nh5 {[%emt 0:07:04]} 22. Bh2 {[%emt 0:06:14]} Nhf4 {[%emt 0:05:46]} 23. Ng3 {[%emt 0:09:44]} Nh4 {[%emt 0:02:58]} 24. Nh5+ {[%emt 0:00:07]} Nxh5 {[%emt 0:00:15]} 25. Qxh5 {[%emt 0:00:06]} Ng6 {[%emt 0:02:25]} 26. Rad1 {[%emt 0:01:35]} Qe7 {[%emt 0:02:16]} 27. Bg3 {[%emt 0:02:35]} Rbd8 {[%emt 0:01:52]} 28. Rfe1 {[%emt 0:05:15]} Nf4 {[%emt 0:02:18]} 29. Bxf4 {[%emt 0:05:25]} gxf4 {[%emt 0:00:07]} 30. d4 {[%emt 0:00:46]} Qf6 {[%emt 0:01:55]} 31. g3 {[%emt 0:01:30]} fxg3 {[%emt 0:07:51]} 32. Rg1 {[%emt 0:04:45]} Qxf2 $15 {[%emt 0:00:41]} 33. Rg2 {[%emt 0:02:30]} Qf4 {[%emt 0:00:52]} 34. Rdg1 {[%emt 0:00:38]} Kh7 {[%emt 0:02:33]} 35. Rxg3 {[%emt 0:04:30]} Rg8 {[%emt 0:01:56]} 36. Rf3 {[%emt 0:00:50]} Rxg1+ {[%emt 0:00:07]} 37. Kxg1 {[%emt 0:00:31]} Qg5+ {[%emt 0:00:04]} 38. Qxg5 {[%emt 0:00:07]} hxg5 {[%emt 0:00:04]} 39. Rxf7+ {[%emt 0:00:10]} 1/2-1/2

[Event "1st 4NCL International Open"]
[Site "Telford"]
[Date "2018.11.03"]
[Round "7"]
[White "Stepanyan, Henrik"]
[Black "Ferrington, Nigel M"]
[Result "1-0"]
[ECO "D02"]
[WhiteElo "2158"]
[BlackElo "2130"]
[Annotator "NA"]
[PlyCount "117"]
[EventDate "2018.10.31"]
[EventType "swiss"]
[EventCountry "GBR"]
[SourceTitle "playchess.com"]
[Source "ChessBase"]
[SourceQuality "1"]
[TimeControl "5400+30"]

1. d4 {[%emt 0:00:00]} d5 {[%emt 0:00:28]} 2. Nf3 {[%emt 0:00:00]} c5 {[%emt 0:00:47]} 3. g3 {[%emt 0:06:36]} cxd4 {[%emt 0:01:52]} 4. Bg2 {[%emt 0:00:45]} f6 {[%emt 0:07:42] D02: 1 d4 d5 2 Nf3 sidelines, including 2...Nf6 3 g3 and 2...Nf6 3 Bf4} (4... Qa5+ 5. Kf1 Nf6 6. Nxd4 e6 7. Nb3 Qa6 8. Nc3 Be7 9. a4 Bd7 10. Bf4 O-O 11. Kg1 Rc8 12. e3 {1-0 (54) Sokolov,I (2643)-Gleizerov,E (2546) Koge 2013}) 5. Nxd4 {[%emt 0:01:03]} e5 {[%emt 0:00:11]} 6. Nb3 {[%emt 0:00:32]} Be6 $146 {[%emt 0:00:29]} ({Predecessor:} 6... Ne7 7. c4 dxc4 8. Qxd8+ Kxd8 9. Na5 Nec6 10. Bd2 Bc5 11. Na3 Bxa3 12. bxa3 {1-0 (61) Muse,M (2379)-Jakubowski,K (2520) Germany 2017}) 7. O-O {[%emt 0:06:06]} Nc6 {[%emt 0:00:24]} 8. Nc3 {[%emt 0:00:32]} d4 {[%emt 0:04:46]} 9. Ne4 {[%emt 0:00:01]} Bd5 {[%emt 0:04:51]} 10. c3 {[%emt 0:07:39]} f5 $1 {[%emt 0:01:26]} 11. Bg5 {[%emt 0:00:49]} Be7 {[%emt 0:08:25]} 12. Bxe7 {[%emt 0:06:01]} Qxe7 {[%emt 0:02:06]} 13. Nec5 {[%emt 0:01:57]} Bxg2 $1 {[%emt 0:00:25]} 14. Kxg2 {[%emt 0:00:03]} dxc3 {[%emt 0:04:44]} 15. bxc3 {[%emt 0:01:02]} Nf6 {[%emt 0:00:25]} 16. Qd3 {[%emt 0:00:50] [#]} b6 $1 {[%emt 0:10:52]} 17. Na6 {[%emt 0:05:45]} Qb7 {[%emt 0:06:35]} 18. Qb5 {[%emt 0:01:50]} O-O {[%emt 0:01:12]} 19. Kg1 {[%emt 0:06:27]} Rf7 {[%emt 0:05:05]} 20. Rad1 {[%emt 0:01:29]} Rc8 {[%emt 0:08:49]} 21. Rd3 {[%emt 0:03:10]} g6 {[%emt 0:07:24]} 22. Rfd1 {[%emt 0:00:22]} Kg7 $15 {[%emt 0:02:15]} 23. a4 {[%emt 0:08:27]} Nb8 {[%emt 0:08:46]} 24. Nb4 {[%emt 0:01:56]} Qc7 {[%emt 0:04:20]} 25. Nd5 {[%emt 0:08:28]} Qc4 {[%emt 0:04:12]} 26. Ne3 {[%emt 0:07:08]} Qxb5 {[%emt 0:00:23]} 27. axb5 {[%emt 0:00:02]} Nbd7 {[%emt 0:02:00]} 28. Na1 {[%emt 0:05:50]} e4 {[%emt 0:00:37]} 29. Rd6 {[%emt 0:00:01]} Rxc3 {[%emt 0:00:16]} 30. Nac2 {[%emt 0:00:02]} Nc5 {[%emt 0:00:35]} 31. Nd4 {[%emt 0:00:25]} Rc7 {[%emt 0:01:06]} 32. Rxf6 {[%emt 0:05:30]} Rxe3 {[%emt 0:00:10]} 33. Rc6 {[%emt 0:00:04]} Rxc6 {[%emt 0:00:26]} 34. bxc6 {[%emt 0:00:02]} Rc3 {[%emt 0:01:23]} 35. Nb5 {[%emt 0:00:01]} Rc2 {[%emt 0:00:21]} 36. Nxa7 {[%emt 0:06:33]} Ne6 {[%emt 0:00:07]} 37. Rd7+ {[%emt 0:00:08]} Kf6 {[%emt 0:00:51]} 38. Rxh7 {[%emt 0:00:10]} Ke5 {[%emt 0:00:45]} 39. Rb7 {[%emt 0:00:23]} Kd6 {[%emt 0:00:57]} 40. e3 {[%emt 0:00:49]} Nc7 {[%emt 0:00:24]} 41. Rxb6 {[%emt 0:00:15]} Ra2 {[%emt 0:00:21]} 42. Nc8+ {[%emt 0:00:32]} Kc5 {[%emt 0:00:08]} 43. Rb1 {[%emt 0:00:14]} Kxc6 {[%emt 0:00:46]} 44. Ne7+ {[%emt 0:00:04]} Kd6 {[%emt 0:00:36]} 45. Nxg6 {[%emt 0:00:01]} Nd5 {[%emt 0:00:36]} 46. Nh4 {[%emt 0:00:38]} Ne7 {[%emt 0:00:42]} 47. Rb6+ {[%emt 0:00:43]} Kc7 {[%emt 0:00:44]} 48. Rb5 {[%emt 0:00:35]} Kc6 {[%emt 0:00:09]} 49. Rb8 {[%emt 0:00:58]} Ra5 {[%emt 0:00:20]} 50. h3 {[%emt 0:00:28]} Kc7 {[%emt 0:00:13]} 51. Rh8 {[%emt 0:00:03]} Kd6 {[%emt 0:00:19]} 52. Rh6+ {[%emt 0:00:04]} Kd5 {[%emt 0:00:41]} 53. Kg2 {[%emt 0:00:22]} Rb5 {[%emt 0:00:21]} 54. Rh5 {[%emt 0:00:11]} Kc4 {[%emt 0:01:05]} 55. Rh7 {[%emt 0:00:24]} Re5 {[%emt 0:00:24]} 56. Rg7 {[%emt 0:00:18]} Kd3 {[%emt 0:00:27]} 57. Ng6 {[%emt 0:00:09]} Nxg6 {[%emt 0:00:06]} 58. Rxg6 {[%emt 0:00:00]} Ke2 {[%emt 0:00:20]} 59. Rg5 {[%emt 0:00:13]} 1-0